[Event "*** Titled Tuesday 3|2 Blitz"]
[Site "Chess.com"]
[Date "2016.06.07"]
[Round "7"]
[White "IIIlllII1llIl"]
[Black "Fandorine"]
[Result "0-1"]
[WhiteElo "2488"]
[BlackElo "2618"]
[TimeControl "180+2"]
[EndTime "18:27:32 PDT"]
[Termination "Fandorine won by resignation"]

1. e4 {[%clk 0:03:01.2]} 1... c6 {[%clk 0:03:00.8]} 2. d4 {[%clk 0:03:02.4]}
2... d5 {[%clk 0:03:02.3]} 3. Nc3 {[%clk 0:03:03.9]} 3... dxe4 {[%clk
0:03:03.7]} 4. Nxe4 {[%clk 0:03:05.8]} 4... Bf5 {[%clk 0:03:05.4]} 5. Ng3 {[%clk
0:03:07.1]} 5... Bg6 {[%clk 0:03:07.1]} 6. Nf3 {[%clk 0:03:08.6]} 6... Nf6
{[%clk 0:03:08]} 7. Ne5 {[%clk 0:03:08.5]} 7... Nbd7 {[%clk 0:03:07.6]} 8. Nxg6
{[%clk 0:03:02.7]} 8... hxg6 {[%clk 0:03:09.5]} 9. c3 {[%clk 0:02:51.3]} 9... e6
{[%clk 0:03:09.5]} 10. Qb3 {[%clk 0:02:50.9]} 10... Qc7 {[%clk 0:03:08.1]} 11.
Bg5 {[%clk 0:02:45.8]} 11... Bd6 {[%clk 0:03:08.8]} 12. Bd3 {[%clk 0:02:42]}
12... O-O-O {[%clk 0:02:37.7]} 13. Ne2 {[%clk 0:02:35.3]} 13... Qa5 {[%clk
0:02:15.7]} 14. Bd2 {[%clk 0:02:26.5]} 14... Qd5 {[%clk 0:02:07.8]} 15. Qxd5
{[%clk 0:02:19.9]} 15... cxd5 {[%clk 0:01:51.3]} 16. h3 {[%clk 0:02:02.7]} 16...
a6 {[%clk 0:01:43.7]} 17. O-O-O {[%clk 0:01:41.6]} 17... Rde8 {[%clk 0:01:32.1]}
18. Bc2 {[%clk 0:01:25.2]} 18... Kc7 {[%clk 0:01:32]} 19. Be3 {[%clk 0:01:16.3]}
19... b5 {[%clk 0:01:32]} 20. a3 {[%clk 0:01:10.8]} 20... a5 {[%clk 0:01:31.3]}
21. Bd3 {[%clk 0:01:02.4]} 21... Rb8 {[%clk 0:01:19.4]} 22. Kc2 {[%clk
0:01:01.1]} 22... Kc6 {[%clk 0:01:16]} 23. Ra1 {[%clk 0:01:01.5]} 23... a4
{[%clk 0:01:13.1]} 24. Rae1 {[%clk 0:00:49.6]} 24... Nb6 {[%clk 0:01:14.2]} 25.
Bc1 {[%clk 0:00:48.6]} 25... Nc4 {[%clk 0:01:15.6]} 26. Nf4 {[%clk 0:00:48.9]}
26... g5 {[%clk 0:01:03.3]} 27. Ne2 {[%clk 0:00:48.3]} 27... g4 {[%clk
0:01:04.8]} 28. h4 {[%clk 0:00:28.6]} 28... Nh5 {[%clk 0:00:45.8]} 29. g3 {[%clk
0:00:25.4]} 29... Rbe8 {[%clk 0:00:45.5]} 30. Bd2 {[%clk 0:00:21.7]} 30... Nf6
{[%clk 0:00:37.9]} 31. Nc1 {[%clk 0:00:22.4]} 31... Nxd2 {[%clk 0:00:26.8]} 32.
Kxd2 {[%clk 0:00:22.8]} 32... Rh5 {[%clk 0:00:28.5]} 33. Kc2 {[%clk 0:00:21.1]}
33... Reh8 {[%clk 0:00:29.9]} 34. Rhg1 {[%clk 0:00:18.5]} 34... g5 {[%clk
0:00:29.7]} 35. hxg5 {[%clk 0:00:20.4]} 35... Rxg5 {[%clk 0:00:31.6]} 36. Rh1
{[%clk 0:00:21.9]} 36... Rgh5 {[%clk 0:00:33.2]} 37. Rxh5 {[%clk 0:00:23.1]}
37... Rxh5 {[%clk 0:00:35.1]} 38. Kd2 {[%clk 0:00:23.2]} 38... Rh2 {[%clk
0:00:34.7]} 39. Re2 {[%clk 0:00:24.7]} 39... Ne4+ {[%clk 0:00:21.5]} 40. Bxe4
{[%clk 0:00:24.1]} 40... dxe4 {[%clk 0:00:23.4]} 41. Na2 {[%clk 0:00:17.2]}
41... f5 {[%clk 0:00:20.2]} 42. c4 {[%clk 0:00:17]} 42... bxc4 {[%clk
0:00:20.4]} 43. Nc3 {[%clk 0:00:18.5]} 43... e5 {[%clk 0:00:18.2]} 44. dxe5
{[%clk 0:00:17.4]} 44... Bxe5 {[%clk 0:00:20.1]} 45. Nxa4 {[%clk 0:00:19]} 45...
Rh1 {[%clk 0:00:18.3]} 46. Nc3 {[%clk 0:00:18.7]} 46... Bd4 {[%clk 0:00:19.5]}
47. Nd1 {[%clk 0:00:19.2]} 47... Rh2 {[%clk 0:00:18.6]} 48. Ne3 {[%clk
0:00:20.3]} 48... Bxb2 {[%clk 0:00:15.2]} 49. Nxc4 {[%clk 0:00:20.4]} 49... Bd4
{[%clk 0:00:12.1]} 50. Ne3 {[%clk 0:00:21.5]} 50... Rh5 {[%clk 0:00:13.7]} 51.
Kc2 {[%clk 0:00:21.4]} 51... Kc5 {[%clk 0:00:10.8]} 52. Kd2 {[%clk 0:00:20.7]}
52... Kd6 {[%clk 0:00:07.1]} 53. Re1 {[%clk 0:00:19.7]} 53... Ke6 {[%clk
0:00:07.8]} 54. Rb1 {[%clk 0:00:20.7]} 54... Rh2 {[%clk 0:00:08]} 55. Ke2 {[%clk
0:00:22.1]} 55... f4 {[%clk 0:00:06.3]} 56. gxf4 {[%clk 0:00:22.7]} 56... g3
{[%clk 0:00:07.6]} 57. Ng4 {[%clk 0:00:24.2]} 57... Rh4 {[%clk 0:00:08.5]} 58.
Ne3 {[%clk 0:00:22.6]} 58... Rh2 {[%clk 0:00:06.8]} 59. f5+ {[%clk 0:00:23.9]}
59... Kf7 {[%clk 0:00:05.5]} 60. Rb7+ {[%clk 0:00:21.9]} 60... Kf8 {[%clk
0:00:06.5]} 61. Ng4 {[%clk 0:00:21.8]} 61... g2 {[%clk 0:00:06.3]} 62. Rb8+
{[%clk 0:00:18.7]} 62... Ke7 {[%clk 0:00:07.8]} 63. Rb7+ {[%clk 0:00:19.9]}
63... Kd8 {[%clk 0:00:08.7]} 64. Nxh2 {[%clk 0:00:18]} 64... g1=Q {[%clk
0:00:09.2]} 65. f6 {[%clk 0:00:15.6]} 65... Qxf2+ {[%clk 0:00:10.5]} 66. Kd1
{[%clk 0:00:17.2]} 66... Qxh2 {[%clk 0:00:10.8]} 67. f7 {[%clk 0:00:18.3]} 67...
Qg1+ {[%clk 0:00:11.1]} 68. Kc2 {[%clk 0:00:19.6]} 68... Qf2+ {[%clk 0:00:11.1]}
69. Kd1 {[%clk 0:00:20.4]} 69... Bc5 {[%clk 0:00:10.2]} 70. Rb8+ {[%clk
0:00:17.7]} 70... Kc7 {[%clk 0:00:11]} 71. Rb5 {[%clk 0:00:18.7]} 71... Kc6
{[%clk 0:00:11.1]} 72. Ra5 {[%clk 0:00:18.9]} 72... e3 {[%clk 0:00:11.3]} 73.
Ra6+ {[%clk 0:00:18.5]} 73... Kb7 {[%clk 0:00:12.5]} 0-1

[Event "*** Titled Tuesday 3|2 Blitz"]
[Site "Chess.com"]
[Date "2016.06.07"]
[Round "7"]
[White "howitzer14"]
[Black "Danhy"]
[Result "1-0"]
[WhiteElo "2689"]
[BlackElo "2492"]
[TimeControl "180+2"]
[EndTime "18:28:22 PDT"]
[Termination "howitzer14 won by resignation"]

1. e4 {[%clk 0:03:01.9]} 1... c5 {[%clk 0:02:58.9]} 2. c3 {[%clk 0:02:54.6]}
2... d5 {[%clk 0:02:59.2]} 3. exd5 {[%clk 0:02:55.9]} 3... Qxd5 {[%clk 0:03:00]}
4. d4 {[%clk 0:02:57.8]} 4... Nf6 {[%clk 0:02:56.3]} 5. Nf3 {[%clk 0:02:59.1]}
5... Nc6 {[%clk 0:02:52.9]} 6. Be3 {[%clk 0:02:59]} 6... e6 {[%clk 0:02:50.3]}
7. a3 {[%clk 0:02:58.9]} 7... cxd4 {[%clk 0:02:49]} 8. cxd4 {[%clk 0:03:00.8]}
8... Be7 {[%clk 0:02:48.9]} 9. Nc3 {[%clk 0:03:02.1]} 9... Qd8 {[%clk
0:02:46.7]} 10. Bd3 {[%clk 0:03:04]} 10... O-O {[%clk 0:02:47.2]} 11. Qc2 {[%clk
0:03:01]} 11... h6 {[%clk 0:02:35.4]} 12. Rd1 {[%clk 0:02:59.1]} 12... b6 {[%clk
0:02:35.8]} 13. d5 {[%clk 0:02:23.6]} 13... exd5 {[%clk 0:02:27.7]} 14. Nxd5
{[%clk 0:02:24]} 14... Nxd5 {[%clk 0:02:12.5]} 15. Qxc6 {[%clk 0:02:23.3]} 15...
Be6 {[%clk 0:02:04.9]} 16. Be4 {[%clk 0:02:21.8]} 16... Rc8 {[%clk 0:02:05.2]}
17. Rxd5 {[%clk 0:02:22]} 17... Bxd5 {[%clk 0:01:55.5]} 18. Qxd5 {[%clk
0:02:22.2]} 18... Qxd5 {[%clk 0:01:54.2]} 19. Bxd5 {[%clk 0:02:24.1]} 19... Rc2
{[%clk 0:01:55]} 20. b4 {[%clk 0:02:17.2]} 20... Rc3 {[%clk 0:01:39.1]} 21. Ke2
{[%clk 0:02:00.2]} 21... Rxa3 {[%clk 0:01:39.1]} 22. b5 {[%clk 0:01:56.5]} 22...
Rd8 {[%clk 0:01:35.6]} 23. Rd1 {[%clk 0:01:55.9]} 23... Ra5 {[%clk 0:01:19.4]}
24. Bc4 {[%clk 0:01:42.6]} 24... Rxd1 {[%clk 0:01:13.9]} 25. Kxd1 {[%clk
0:01:44.5]} 25... Ra4 {[%clk 0:01:14.7]} 26. Bd3 {[%clk 0:01:39.5]} 26... Ra2
{[%clk 0:01:09.8]} 27. Bc4 {[%clk 0:01:39.3]} 27... Ra4 {[%clk 0:01:06.9]} 28.
Bd3 {[%clk 0:01:37.3]} 28... Ra2 {[%clk 0:01:07.4]} 29. Ne5 {[%clk 0:01:34.2]}
29... Bd6 {[%clk 0:00:45.9]} 30. Nf3 {[%clk 0:01:00.9]} 30... Kf8 {[%clk
0:00:43.7]} 31. h4 {[%clk 0:01:02]} 31... Rb2 {[%clk 0:00:30.5]} 32. h5 {[%clk
0:00:57.3]} 32... Ra2 {[%clk 0:00:30]} 33. Nd2 {[%clk 0:00:49.6]} 33... Ra4
{[%clk 0:00:23.6]} 34. Kc2 {[%clk 0:00:47.3]} 34... Rh4 {[%clk 0:00:23.7]} 35.
Be2 {[%clk 0:00:48.7]} 35... Rh2 {[%clk 0:00:22.5]} 36. Bf3 {[%clk 0:00:47.5]}
36... Rh4 {[%clk 0:00:22.7]} 37. Ne4 {[%clk 0:00:44.7]} 37... Bc7 {[%clk
0:00:23.1]} 38. Kd3 {[%clk 0:00:43.6]} 38... f5 {[%clk 0:00:22.2]} 39. Nc3
{[%clk 0:00:41.4]} 39... Rb4 {[%clk 0:00:22.8]} 40. Nd5 {[%clk 0:00:39]} 40...
Rxb5 {[%clk 0:00:18.8]} 41. Nxc7 {[%clk 0:00:40]} 41... Rb1 {[%clk 0:00:20]} 42.
Ne6+ {[%clk 0:00:37.6]} 42... Kf7 {[%clk 0:00:20.7]} 43. Nf4 {[%clk 0:00:36.6]}
43... a5 {[%clk 0:00:21.3]} 44. Bd4 {[%clk 0:00:37.1]} 44... a4 {[%clk
0:00:21.8]} 45. Bd5+ {[%clk 0:00:38.6]} 45... Ke7 {[%clk 0:00:21.1]} 46. Kc2
{[%clk 0:00:39.8]} 46... Rb4 {[%clk 0:00:18.8]} 47. Kc3 {[%clk 0:00:41]} 47...
Rb1 {[%clk 0:00:17.7]} 48. Ba2 {[%clk 0:00:42]} 48... Ra1 {[%clk 0:00:17.1]} 49.
Kb2 {[%clk 0:00:41.8]} 49... Rd1 {[%clk 0:00:17.7]} 50. Kc3 {[%clk 0:00:38.3]}
50... b5 {[%clk 0:00:18.2]} 51. Bxg7 {[%clk 0:00:37.1]} 51... Ra1 {[%clk
0:00:17.1]} 52. Kb2 {[%clk 0:00:37.1]} 52... Rf1 {[%clk 0:00:16.8]} 53. Nd3
{[%clk 0:00:36.8]} 53... Rd1 {[%clk 0:00:17.2]} 54. Kc2 {[%clk 0:00:37.1]} 54...
Rh1 {[%clk 0:00:17.8]} 55. Bxh6 {[%clk 0:00:32.1]} 55... Rxh5 {[%clk 0:00:18.1]}
56. Bd2 {[%clk 0:00:33.7]} 56... Rh2 {[%clk 0:00:18.2]} 57. g3 {[%clk
0:00:35.2]} 57... Rg2 {[%clk 0:00:17.7]} 58. Kc3 {[%clk 0:00:35.8]} 58... Rg1
{[%clk 0:00:18.5]} 59. Be1 {[%clk 0:00:33.7]} 59... Kd6 {[%clk 0:00:17]} 60. Kb4
{[%clk 0:00:34.8]} 60... Kc6 {[%clk 0:00:18]} 61. Ne5+ {[%clk 0:00:32]} 61...
Kb6 {[%clk 0:00:18.1]} 62. Nf3 {[%clk 0:00:28.3]} 62... Rh1 {[%clk 0:00:18.5]}
63. Bc3 {[%clk 0:00:27.8]} 63... Rc1 {[%clk 0:00:18.1]} 64. Bd4+ {[%clk
0:00:27.4]} 64... Ka6 {[%clk 0:00:19]} 65. Be6 {[%clk 0:00:25.6]} 65... Rb1+
{[%clk 0:00:18.7]} 66. Kc3 {[%clk 0:00:20.6]} 66... Ka5 {[%clk 0:00:19.2]} 67.
Kc2 {[%clk 0:00:20.6]} 67... Rf1 {[%clk 0:00:15.8]} 68. Nd2 {[%clk 0:00:21.8]}
68... Rh1 {[%clk 0:00:15.3]} 69. Bd7 {[%clk 0:00:18.7]} 69... Rh7 {[%clk
0:00:13]} 70. Bxf5 {[%clk 0:00:17.5]} 70... Rc7+ {[%clk 0:00:13.2]} 71. Kd3
{[%clk 0:00:19]} 71... b4 {[%clk 0:00:13.1]} 72. Nc4+ {[%clk 0:00:19.3]} 72...
Kb5 {[%clk 0:00:14.3]} 73. Nd6+ {[%clk 0:00:20.7]} 73... Ka5 {[%clk 0:00:15.5]}
74. Be5 {[%clk 0:00:19.9]} 74... a3 {[%clk 0:00:16]} 75. Nc4+ {[%clk 0:00:20.1]}
75... Rxc4 {[%clk 0:00:17.2]} 76. Kxc4 {[%clk 0:00:21]} 76... Ka4 {[%clk
0:00:18.7]} 77. Bc2+ {[%clk 0:00:21.7]} 1-0

[Event "*** Titled Tuesday 3|2 Blitz"]
[Site "Chess.com"]
[Date "2016.06.07"]
[Round "8"]
[White "evgenyermolaev"]
[Black "tactics321"]
[Result "1-0"]
[WhiteElo "2278"]
[BlackElo "2215"]
[TimeControl "180+2"]
[EndTime "18:37:52 PDT"]
[Termination "evgenyermolaev won by resignation"]

1. e4 {[%clk 0:02:57.7]} 1... e5 {[%clk 0:03:00.1]} 2. Nf3 {[%clk 0:02:58.1]}
2... Nc6 {[%clk 0:02:59.8]} 3. Bb5 {[%clk 0:02:59.1]} 3... Nf6 {[%clk
0:03:00.2]} 4. d3 {[%clk 0:02:58.5]} 4... Bc5 {[%clk 0:02:59.9]} 5. O-O {[%clk
0:02:58.9]} 5... d6 {[%clk 0:02:59.2]} 6. Be3 {[%clk 0:02:59.4]} 6... Bb6 {[%clk
0:02:58.1]} 7. c3 {[%clk 0:03:00.4]} 7... O-O {[%clk 0:02:58]} 8. Nbd2 {[%clk
0:02:58.4]} 8... Ne7 {[%clk 0:02:58.3]} 9. Ba4 {[%clk 0:02:54.4]} 9... c6 {[%clk
0:02:56.6]} 10. Bc2 {[%clk 0:02:55.2]} 10... Ng6 {[%clk 0:02:55.2]} 11. d4
{[%clk 0:02:53.2]} 11... Ng4 {[%clk 0:02:52.3]} 12. Nc4 {[%clk 0:02:43.3]} 12...
Nxe3 {[%clk 0:02:49]} 13. Nxe3 {[%clk 0:02:43.8]} 13... Bc7 {[%clk 0:02:38.5]}
14. Qd2 {[%clk 0:02:37.4]} 14... Qf6 {[%clk 0:02:27.6]} 15. Nf5 {[%clk
0:02:31.1]} 15... Ne7 {[%clk 0:02:17.8]} 16. Nxe7+ {[%clk 0:02:11.1]} 16... Qxe7
{[%clk 0:02:19.7]} 17. d5 {[%clk 0:02:12.4]} 17... Bg4 {[%clk 0:02:18.2]} 18.
Ne1 {[%clk 0:02:09.8]} 18... Bb6 {[%clk 0:02:08.5]} 19. h3 {[%clk 0:02:09.4]}
19... Bh5 {[%clk 0:02:05.4]} 20. a4 {[%clk 0:02:05.8]} 20... a5 {[%clk
0:02:03.3]} 21. Nd3 {[%clk 0:01:59.6]} 21... cxd5 {[%clk 0:02:01.4]} 22. exd5
{[%clk 0:01:59.6]} 22... f5 {[%clk 0:02:01.4]} 23. b3 {[%clk 0:01:46.9]} 23...
f4 {[%clk 0:01:59.7]} 24. Nb2 {[%clk 0:01:39.6]} 24... f3 {[%clk 0:01:50.4]} 25.
g3 {[%clk 0:01:36.8]} 25... Rf6 {[%clk 0:01:42.4]} 26. Nc4 {[%clk 0:01:29.1]}
26... Qd7 {[%clk 0:01:22.6]} 27. Kh2 {[%clk 0:01:25.2]} 27... Bc5 {[%clk
0:01:20.7]} 28. Qg5 {[%clk 0:01:05.8]} 28... Rh6 {[%clk 0:01:18.4]} 29. Bf5
{[%clk 0:01:06.2]} 29... Qf7 {[%clk 0:01:14.4]} 30. Be6 {[%clk 0:01:04.1]} 1-0

[Event "*** Titled Tuesday 3|2 Blitz"]
[Site "Chess.com"]
[Date "2016.06.07"]
[Round "8"]
[White "sandropozo"]
[Black "michaelq2d5"]
[Result "0-1"]
[WhiteElo "2396"]
[BlackElo "2490"]
[TimeControl "180+2"]
[EndTime "18:38:35 PDT"]
[Termination "michaelq2d5 won on time"]

1. d4 {[%clk 0:03:00.8]} 1... Nf6 {[%clk 0:03:00]} 2. Nf3 {[%clk 0:03:01.7]}
2... e6 {[%clk 0:02:59.9]} 3. c4 {[%clk 0:03:01.7]} 3... d5 {[%clk 0:03:01]} 4.
Nc3 {[%clk 0:03:02.1]} 4... Bb4 {[%clk 0:03:02]} 5. Bg5 {[%clk 0:03:02.4]} 5...
Nbd7 {[%clk 0:03:03.2]} 6. cxd5 {[%clk 0:02:58.4]} 6... exd5 {[%clk 0:03:04]} 7.
Qc2 {[%clk 0:02:59.4]} 7... c5 {[%clk 0:03:05]} 8. e3 {[%clk 0:03:00.4]} 8...
Qa5 {[%clk 0:03:06]} 9. Bd3 {[%clk 0:03:01.1]} 9... O-O {[%clk 0:03:05.6]} 10.
O-O {[%clk 0:03:01.2]} 10... c4 {[%clk 0:03:06.3]} 11. Bf5 {[%clk 0:03:02]}
11... g6 {[%clk 0:03:07.5]} 12. Bxd7 {[%clk 0:02:49.6]} 12... Nxd7 {[%clk
0:03:09.4]} 13. e4 {[%clk 0:02:38.2]} 13... Bxc3 {[%clk 0:03:03.4]} 14. bxc3
{[%clk 0:02:39.6]} 14... dxe4 {[%clk 0:03:04]} 15. Qxe4 {[%clk 0:02:41.2]} 15...
Nb6 {[%clk 0:03:05.2]} 16. Qh4 {[%clk 0:02:21.3]} 16... Nd5 {[%clk 0:02:58.6]}
17. Rfe1 {[%clk 0:01:55.1]} 17... Bf5 {[%clk 0:02:18.5]} 18. Bh6 {[%clk
0:01:27.3]} 18... Rfe8 {[%clk 0:02:17]} 19. Bd2 {[%clk 0:01:20.5]} 19... f6
{[%clk 0:02:10.5]} 20. Qg3 {[%clk 0:01:04]} 20... Qc7 {[%clk 0:01:48.2]} 21. Qh4
{[%clk 0:00:57.5]} 21... b5 {[%clk 0:01:40]} 22. h3 {[%clk 0:00:37.5]} 22... a5
{[%clk 0:01:37.9]} 23. Qh6 {[%clk 0:00:36.3]} 23... b4 {[%clk 0:01:31.2]} 24.
Nh4 {[%clk 0:00:26.3]} 24... bxc3 {[%clk 0:01:15.8]} 25. Be3 {[%clk 0:00:25.8]}
25... Bd3 {[%clk 0:01:15]} 26. g4 {[%clk 0:00:20.2]} 26... Qg7 {[%clk
0:01:05.9]} 0-1

[Event "*** Titled Tuesday 3|2 Blitz"]
[Site "Chess.com"]
[Date "2016.06.07"]
[Round "8"]
[White "MinhGTrAn"]
[Black "ShimanovAlex"]
[Result "1-0"]
[WhiteElo "2663"]
[BlackElo "2643"]
[TimeControl "180+2"]
[EndTime "18:38:47 PDT"]
[Termination "MinhGTrAn won by resignation"]

1. d4 {[%clk 0:03:01.9]} 1... Nf6 {[%clk 0:03:00.7]} 2. c4 {[%clk 0:03:00.9]}
2... g6 {[%clk 0:02:53.9]} 3. Nc3 {[%clk 0:03:01.9]} 3... Bg7 {[%clk 0:02:55]}
4. e4 {[%clk 0:03:01.7]} 4... O-O {[%clk 0:02:56.1]} 5. Bd3 {[%clk 0:03:03.3]}
5... d6 {[%clk 0:02:57.1]} 6. Nge2 {[%clk 0:03:04.9]} 6... Nbd7 {[%clk
0:02:56.7]} 7. Bc2 {[%clk 0:03:01.3]} 7... c6 {[%clk 0:02:51]} 8. O-O {[%clk
0:03:01.2]} 8... a6 {[%clk 0:02:52.2]} 9. a4 {[%clk 0:02:54.1]} 9... a5 {[%clk
0:02:53]} 10. f3 {[%clk 0:02:52.4]} 10... e5 {[%clk 0:02:53.8]} 11. Be3 {[%clk
0:02:50.8]} 11... Re8 {[%clk 0:02:50.5]} 12. Qd2 {[%clk 0:02:46.9]} 12... exd4
{[%clk 0:02:44.7]} 13. Bxd4 {[%clk 0:02:42.9]} 13... Ne5 {[%clk 0:02:43.8]} 14.
b3 {[%clk 0:02:44.1]} 14... Nfd7 {[%clk 0:02:20.6]} 15. Rad1 {[%clk 0:02:44.2]}
15... Bf8 {[%clk 0:02:14.5]} 16. f4 {[%clk 0:02:43.7]} 16... Ng4 {[%clk
0:02:15.2]} 17. h3 {[%clk 0:02:43]} 17... Ngf6 {[%clk 0:02:16.3]} 18. Ng3 {[%clk
0:02:44.6]} 18... Bg7 {[%clk 0:02:12.9]} 19. Bf2 {[%clk 0:02:36.2]} 19... Bf8
{[%clk 0:02:11.4]} 20. Rfe1 {[%clk 0:02:17.8]} 20... Qc7 {[%clk 0:02:12.1]} 21.
Bd4 {[%clk 0:02:11.1]} 21... Bg7 {[%clk 0:02:12.5]} 22. Bf2 {[%clk 0:02:08.9]}
22... Bf8 {[%clk 0:02:13.1]} 23. Nge2 {[%clk 0:01:46.3]} 23... b6 {[%clk
0:02:03.3]} 24. Nd4 {[%clk 0:01:41.3]} 24... Bb7 {[%clk 0:02:01.8]} 25. Nf3
{[%clk 0:01:37.2]} 25... Rad8 {[%clk 0:02:01.3]} 26. Bh4 {[%clk 0:01:35.3]}
26... Be7 {[%clk 0:02:02.3]} 27. Qf2 {[%clk 0:01:32.3]} 27... Nc5 {[%clk
0:01:59.9]} 28. f5 {[%clk 0:01:26.8]} 28... Nh5 {[%clk 0:01:59.5]} 29. g4 {[%clk
0:01:25]} 29... Nf6 {[%clk 0:02:00.2]} 30. Qg3 {[%clk 0:01:17.5]} 30... Ncd7
{[%clk 0:01:55]} 31. Qf4 {[%clk 0:01:10.9]} 31... Ne5 {[%clk 0:01:54.4]} 32. Rf1
{[%clk 0:01:06.9]} 32... Rf8 {[%clk 0:01:49]} 33. Bg5 {[%clk 0:01:06]} 33... Kh8
{[%clk 0:01:43]} 34. Qg3 {[%clk 0:00:55.5]} 34... Ng8 {[%clk 0:01:40.1]} 35. f6
{[%clk 0:00:47.6]} 35... Nxf6 {[%clk 0:01:20.8]} 36. Nxe5 {[%clk 0:00:48.3]}
36... Nxe4 {[%clk 0:01:17.3]} 37. Nxe4 {[%clk 0:00:42.6]} 37... Bxg5 {[%clk
0:01:14.7]} 38. Nxg5 {[%clk 0:00:36.9]} 38... dxe5 {[%clk 0:01:15.5]} 39. Rxd8
{[%clk 0:00:37.6]} 1-0

[Event "*** Titled Tuesday 3|2 Blitz"]
[Site "Chess.com"]
[Date "2016.06.07"]
[Round "8"]
[White "Generalas"]
[Black "Viaje"]
[Result "1-0"]
[WhiteElo "2229"]
[BlackElo "2114"]
[TimeControl "180+2"]
[EndTime "18:39:18 PDT"]
[Termination "Generalas won by checkmate"]

1. e4 {[%clk 0:03:01.9]} 1... c5 {[%clk 0:03:00.7]} 2. c3 {[%clk 0:03:01.8]}
2... Nf6 {[%clk 0:03:00.6]} 3. e5 {[%clk 0:03:02.8]} 3... Nd5 {[%clk 0:03:01.8]}
4. d4 {[%clk 0:03:04]} 4... cxd4 {[%clk 0:03:03.7]} 5. cxd4 {[%clk 0:03:04.4]}
5... e6 {[%clk 0:03:05.2]} 6. Nf3 {[%clk 0:03:04.5]} 6... b6 {[%clk 0:03:06.8]}
7. Nc3 {[%clk 0:03:01.6]} 7... Nxc3 {[%clk 0:03:07.5]} 8. bxc3 {[%clk
0:03:02.4]} 8... Qc7 {[%clk 0:03:09.1]} 9. Bd2 {[%clk 0:03:02.9]} 9... Bb7
{[%clk 0:03:04]} 10. Bd3 {[%clk 0:03:03.3]} 10... d6 {[%clk 0:03:04.8]} 11. O-O
{[%clk 0:03:03.9]} 11... Nd7 {[%clk 0:03:05.8]} 12. Re1 {[%clk 0:03:04.4]} 12...
dxe5 {[%clk 0:03:07]} 13. Ng5 {[%clk 0:03:04.7]} 13... Be7 {[%clk 0:02:58]} 14.
Qh5 {[%clk 0:03:00.3]} 14... g6 {[%clk 0:02:45.7]} 15. Qh3 {[%clk 0:02:59.2]}
15... Bxg5 {[%clk 0:02:39.2]} 16. Bxg5 {[%clk 0:02:59.1]} 16... O-O {[%clk
0:02:40.7]} 17. dxe5 {[%clk 0:02:50.4]} 17... Qxc3 {[%clk 0:02:28]} 18. Rac1
{[%clk 0:02:48.7]} 18... Qd4 {[%clk 0:02:25.4]} 19. Rc7 {[%clk 0:02:29.8]} 19...
Rfb8 {[%clk 0:01:44.8]} 20. Bb5 {[%clk 0:02:01.8]} 20... Qb4 {[%clk 0:01:22.4]}
21. Rd1 {[%clk 0:01:47.3]} 21... Qxb5 {[%clk 0:01:22.9]} 22. Rcxd7 {[%clk
0:01:44.1]} 22... Qxe5 {[%clk 0:01:23.3]} 23. Rxf7 {[%clk 0:01:37.1]} 23... h5
{[%clk 0:01:05.4]} 24. Bf6 {[%clk 0:01:36.5]} 24... Rd8 {[%clk 0:00:51.5]} 25.
Rf1 {[%clk 0:00:58.9]} 25... Qe4 {[%clk 0:00:44.5]} 26. Rg7+ {[%clk 0:00:57.6]}
26... Kf8 {[%clk 0:00:45]} 27. Qg3 {[%clk 0:00:48.5]} 27... Rd3 {[%clk
0:00:36.9]} 28. Qg5 {[%clk 0:00:44.8]} 28... Rc8 {[%clk 0:00:13.2]} 29. Rxg6
{[%clk 0:00:42.8]} 29... Rc5 {[%clk 0:00:09.9]} 30. Rg8+ {[%clk 0:00:37.8]}
30... Kf7 {[%clk 0:00:09.7]} 31. Qg7# {[%clk 0:00:38.5]} 1-0

[Event "*** Titled Tuesday 3|2 Blitz"]
[Site "Chess.com"]
[Date "2016.06.07"]
[Round "8"]
[White "AlexanderL"]
[Black "yopino"]
[Result "1-0"]
[WhiteElo "2581"]
[BlackElo "2268"]
[TimeControl "180+2"]
[EndTime "18:39:28 PDT"]
[Termination "AlexanderL won by resignation"]

1. d4 {[%clk 0:03:01.9]} 1... Nf6 {[%clk 0:03:00]} 2. c4 {[%clk 0:03:01.9]} 2...
e6 {[%clk 0:02:58.8]} 3. Nc3 {[%clk 0:03:02.8]} 3... Bb4 {[%clk 0:02:55.8]} 4.
Qc2 {[%clk 0:03:03.7]} 4... O-O {[%clk 0:02:52]} 5. Nf3 {[%clk 0:03:04.2]} 5...
c5 {[%clk 0:02:45.3]} 6. dxc5 {[%clk 0:03:04.1]} 6... Bxc5 {[%clk 0:02:38.8]} 7.
Bg5 {[%clk 0:03:02.9]} 7... Be7 {[%clk 0:02:39.3]} 8. e4 {[%clk 0:03:01.2]} 8...
Nc6 {[%clk 0:02:34.8]} 9. Rd1 {[%clk 0:03:01.2]} 9... h6 {[%clk 0:02:25.3]} 10.
Bh4 {[%clk 0:03:01.2]} 10... b6 {[%clk 0:02:02.5]} 11. Be2 {[%clk 0:03:01.4]}
11... Bb7 {[%clk 0:01:56.8]} 12. O-O {[%clk 0:03:01.3]} 12... Qb8 {[%clk
0:01:44.8]} 13. Bg3 {[%clk 0:02:52.7]} 13... d6 {[%clk 0:01:41]} 14. Nd4 {[%clk
0:02:47.5]} 14... Nxd4 {[%clk 0:01:34.6]} 15. Rxd4 {[%clk 0:02:49.4]} 15... Rc8
{[%clk 0:01:32.3]} 16. Rfd1 {[%clk 0:02:48.4]} 16... e5 {[%clk 0:01:28.9]} 17.
R4d2 {[%clk 0:02:49.2]} 17... Qc7 {[%clk 0:01:24.5]} 18. b3 {[%clk 0:02:48.5]}
18... Qc5 {[%clk 0:01:21.6]} 19. Kf1 {[%clk 0:02:37]} 19... Qc6 {[%clk
0:01:09.9]} 20. f3 {[%clk 0:02:36.2]} 20... Nh5 {[%clk 0:01:07.3]} 21. Bf2
{[%clk 0:02:35.1]} 21... Nf4 {[%clk 0:01:08.5]} 22. Nb5 {[%clk 0:02:29.8]} 22...
Rd8 {[%clk 0:01:05.3]} 23. a4 {[%clk 0:02:26.5]} 23... h5 {[%clk 0:01:05.7]} 24.
Kg1 {[%clk 0:02:22.2]} 24... Rd7 {[%clk 0:01:01.4]} 25. Bf1 {[%clk 0:02:22.6]}
25... h4 {[%clk 0:00:57.4]} 26. Nc3 {[%clk 0:02:17.7]} 26... Ne6 {[%clk
0:00:54.2]} 27. Be3 {[%clk 0:02:13.1]} 27... Bg5 {[%clk 0:00:51.2]} 28. Bxg5
{[%clk 0:02:12.8]} 28... Qc5+ {[%clk 0:00:50.8]} 29. Kh1 {[%clk 0:02:13.1]}
29... Nxg5 {[%clk 0:00:50.1]} 30. Nb5 {[%clk 0:02:13.3]} 30... Rad8 {[%clk
0:00:43.1]} 31. Nxa7 {[%clk 0:01:58]} 31... Bxe4 {[%clk 0:00:39.9]} 32. fxe4
{[%clk 0:01:59.9]} 32... Rxa7 {[%clk 0:00:33.9]} 33. Rd5 {[%clk 0:01:54.9]}
33... Qe3 {[%clk 0:00:34.8]} 34. Rxd6 {[%clk 0:01:33]} 34... Rxd6 {[%clk
0:00:36.7]} 35. Rxd6 {[%clk 0:01:34.2]} 35... Nxe4 {[%clk 0:00:38.1]} 36. Rd8+
{[%clk 0:01:35.2]} 36... Kh7 {[%clk 0:00:36.2]} 37. Qd3 {[%clk 0:01:36]} 37...
Qe1 {[%clk 0:00:23]} 38. Qe2 {[%clk 0:01:35.7]} 38... Qxe2 {[%clk 0:00:19.9]}
39. Bxe2 {[%clk 0:01:36.6]} 39... Nc3 {[%clk 0:00:17.8]} 40. Bg4 {[%clk
0:01:33.6]} 40... Kg6 {[%clk 0:00:09.7]} 41. Rd6+ {[%clk 0:01:31.4]} 41... f6
{[%clk 0:00:10.3]} 42. Rxb6 {[%clk 0:01:32.3]} 42... Kg5 {[%clk 0:00:05.4]} 43.
h3 {[%clk 0:01:33.5]} 1-0